[Event "Titled Tuesday Blitz January 10 Early 2023"]
[White "Vifleemskaia, Svetlana"]
[Black "Tasev, Dejan"]
[WhiteFideId "4129490"]
[BlackFideId "936618"]
[WhiteElo "1971"]
[BlackElo "2205"]
[Result "0-1"]
[Round "06"]
[TimeControl "180+2"]
[Date "2023.01.10"]
[WhiteClock "0:00:03"]
[BlackClock "0:01:05"]

1. d4 {[%clk 0:02:47]}  e6 {[%clk 0:02:59]} 2. c4 {[%clk 0:02:46]}  f5 {[%clk 0:02:59]} 3. Nf3 {[%clk 0:02:43]}  Nf6 {[%clk 0:02:59]} 4. a3 {[%clk 0:02:43]}  d5 {[%clk 0:02:59]} 5. Qc2 {[%clk 0:02:39]}  c6 {[%clk 0:02:59]} 6. g3 {[%clk 0:02:35]}  Bd6 {[%clk 0:02:59]} 7. Bg2 {[%clk 0:02:35]}  O-O {[%clk 0:02:59]} 8. O-O {[%clk 0:02:35]}  Nbd7 {[%clk 0:02:59]} 9. b4 {[%clk 0:02:34]}  Ne4 {[%clk 0:02:58]} 10. Bb2 {[%clk 0:02:34]}  Rf6 {[%clk 0:02:55]} 11. Ne5 {[%clk 0:02:30]}  Rh6 {[%clk 0:02:53]} 12. f3 {[%clk 0:02:19]}  Ng5 {[%clk 0:02:39]} 13. h4 {[%clk 0:02:06]}  Nf7 {[%clk 0:02:29]} 14. Nxf7 {[%clk 0:01:55]}  Kxf7 {[%clk 0:02:28]} 15. Bc1 {[%clk 0:01:54]}  Bxg3 {[%clk 0:02:24]} 16. Bxh6 {[%clk 0:01:51]}  Qxh4 {[%clk 0:02:24]} 17. Rd1 {[%clk 0:01:41]}  gxh6 {[%clk 0:02:17]} 18. e4 {[%clk 0:01:23]}  Nf6 {[%clk 0:02:13]} 19. Nc3 {[%clk 0:01:06]}  Bd7 {[%clk 0:02:10]} 20. Kf1 {[%clk 0:00:53]}  Rg8 {[%clk 0:02:08]} 21. e5 {[%clk 0:00:44]}  Nh5 {[%clk 0:02:01]} 22. Ne2 {[%clk 0:00:38]}  Bh2 {[%clk 0:01:46]} 23. Rd2 {[%clk 0:00:24]}  Nf4 {[%clk 0:01:35]} 24. Nxf4 {[%clk 0:00:22]}  Bxf4 {[%clk 0:01:35]} 25. Re2 {[%clk 0:00:17]}  Qg5 {[%clk 0:01:24]} 26. Qd1 {[%clk 0:00:16]}  dxc4 {[%clk 0:01:22]} 27. a4 {[%clk 0:00:12]}  h5 {[%clk 0:01:20]} 28. b5 {[%clk 0:00:08]}  h4 {[%clk 0:01:18]} 29. Rf2 {[%clk 0:00:06]}  Qg3 {[%clk 0:01:09]} 30. Rb1 {[%clk 0:00:03]}  h3 {[%clk 0:01:08]} 31. Bh1 {[%clk 0:00:03]}  Be3 {[%clk 0:01:06]} 32. Qe2 {[%clk 0:00:03]}  Qg1# {[%clk 0:01:05]} 0-1


[Site "https://www.chess.com"]

[Event "Titled Tuesday Blitz January 10 Early 2023"]
[White "Mrudul Dehankar"]
[Black "Kozin, Yuri"]
[WhiteFideId "25096990"]
[BlackFideId "4129920"]
[WhiteElo "2030"]
[BlackElo "2251"]
[Result "0-1"]
[Round "06"]
[TimeControl "180+2"]
[Date "2023.01.10"]
[WhiteClock "0:00:26"]
[BlackClock "0:01:50"]

1. e4 {[%clk 0:03:00]}  c5 {[%clk 0:03:00]} 2. Nf3 {[%clk 0:03:00]}  e6 {[%clk 0:02:59]} 3. d4 {[%clk 0:03:00]}  cxd4 {[%clk 0:03:00]} 4. Nxd4 {[%clk 0:03:01]}  a6 {[%clk 0:03:00]} 5. Bd3 {[%clk 0:03:00]}  Qc7 {[%clk 0:03:01]} 6. O-O {[%clk 0:02:59]}  Nc6 {[%clk 0:03:01]} 7. Nxc6 {[%clk 0:02:56]}  dxc6 {[%clk 0:03:02]} 8. f4 {[%clk 0:02:50]}  e5 {[%clk 0:03:02]} 9. f5 {[%clk 0:02:49]}  Nf6 {[%clk 0:03:02]} 10. Qf3 {[%clk 0:02:34]}  Bc5+ {[%clk 0:02:57]} 11. Kh1 {[%clk 0:02:27]}  h6 {[%clk 0:02:56]} 12. Qg3 {[%clk 0:02:24]}  Kf8 {[%clk 0:02:47]} 13. Nd2 {[%clk 0:02:16]}  b5 {[%clk 0:02:47]} 14. Nf3 {[%clk 0:02:13]}  Bd6 {[%clk 0:02:47]} 15. b3 {[%clk 0:02:04]}  Bb7 {[%clk 0:02:47]} 16. Bb2 {[%clk 0:02:02]}  Re8 {[%clk 0:02:47]} 17. Rad1 {[%clk 0:02:01]}  h5 {[%clk 0:02:46]} 18. Ng5 {[%clk 0:01:51]}  h4 {[%clk 0:02:42]} 19. Qe3 {[%clk 0:01:33]}  Qe7 {[%clk 0:02:32]} 20. Be2 {[%clk 0:01:17]}  Bc5 {[%clk 0:02:25]} 21. Qh3 {[%clk 0:01:00]}  Nh5 {[%clk 0:02:09]} 22. Qxh4 {[%clk 0:01:00]}  Be3 {[%clk 0:02:01]} 23. Bxh5 {[%clk 0:00:26]}  Bxg5 {[%clk 0:01:51]} 24. Qf4 {[%clk 0:00:26]}  Bxf4 {[%clk 0:01:50]} 0-1


[Site "https://www.chess.com"]

[Event "Titled Tuesday Blitz January 10 Early 2023"]
[White "Parpiev, Isaak"]
[Black "Prudnykova, Olga"]
[WhiteFideId "34281576"]
[BlackFideId "14121093"]
[WhiteElo "2167"]
[BlackElo "2268"]
[Result "1-0"]
[Round "06"]
[TimeControl "180+2"]
[Date "2023.01.10"]
[WhiteClock "0:00:03"]
[BlackClock "0:00:03"]

1. Nf3 {[%clk 0:03:00]}  Nf6 {[%clk 0:02:59]} 2. g3 {[%clk 0:03:01]}  g6 {[%clk 0:03:00]} 3. Bg2 {[%clk 0:03:01]}  Bg7 {[%clk 0:03:00]} 4. O-O {[%clk 0:03:01]}  d5 {[%clk 0:03:00]} 5. d3 {[%clk 0:03:01]}  d4 {[%clk 0:02:57]} 6. e4 {[%clk 0:02:58]}  dxe3 {[%clk 0:02:57]} 7. Bxe3 {[%clk 0:02:58]}  O-O {[%clk 0:02:57]} 8. Nc3 {[%clk 0:02:56]}  Nc6 {[%clk 0:02:55]} 9. a3 {[%clk 0:02:50]}  e5 {[%clk 0:02:54]} 10. Re1 {[%clk 0:02:49]}  h6 {[%clk 0:02:51]} 11. h3 {[%clk 0:02:48]}  Re8 {[%clk 0:02:51]} 12. Nd2 {[%clk 0:02:47]}  Nd4 {[%clk 0:02:47]} 13. Kh2 {[%clk 0:02:45]}  c6 {[%clk 0:02:46]} 14. a4 {[%clk 0:02:38]}  a5 {[%clk 0:02:44]} 15. Nc4 {[%clk 0:02:38]}  Kh7 {[%clk 0:02:41]} 16. Qd2 {[%clk 0:02:31]}  Nd5 {[%clk 0:02:22]} 17. Bxd4 {[%clk 0:02:19]}  exd4 {[%clk 0:02:20]} 18. Rxe8 {[%clk 0:02:19]}  Qxe8 {[%clk 0:02:16]} 19. Nxd5 {[%clk 0:02:18]}  cxd5 {[%clk 0:02:15]} 20. Bxd5 {[%clk 0:02:12]}  Bxh3 {[%clk 0:01:17]} 21. Bxb7 {[%clk 0:02:07]}  Rb8 {[%clk 0:01:15]} 22. Kxh3 {[%clk 0:02:05]}  Rxb7 {[%clk 0:01:14]} 23. Re1 {[%clk 0:02:04]}  Qxa4 {[%clk 0:01:10]} 24. b3 {[%clk 0:01:54]}  Qd7+ {[%clk 0:01:09]} 25. Kh2 {[%clk 0:01:54]}  a4 {[%clk 0:01:05]} 26. bxa4 {[%clk 0:01:39]}  Qxa4 {[%clk 0:01:05]} 27. Nd6 {[%clk 0:01:40]}  Rc7 {[%clk 0:00:55]} 28. Re2 {[%clk 0:01:34]}  Bf8 {[%clk 0:00:40]} 29. Ne8 {[%clk 0:01:31]}  Re7 {[%clk 0:00:32]} 30. Nf6+ {[%clk 0:01:26]}  Kg7 {[%clk 0:00:30]} 31. Ng4 {[%clk 0:01:15]}  g5 {[%clk 0:00:27]} 32. Rxe7 {[%clk 0:00:58]}  Bxe7 {[%clk 0:00:27]} 33. Qe2 {[%clk 0:00:58]}  Qd7 {[%clk 0:00:25]} 34. Qe5+ {[%clk 0:00:55]}  Kg6 {[%clk 0:00:23]} 35. Qe4+ {[%clk 0:00:46]}  Qf5 {[%clk 0:00:18]} 36. Qxf5+ {[%clk 0:00:41]}  Kxf5 {[%clk 0:00:17]} 37. Nxh6+ {[%clk 0:00:42]}  Kg6 {[%clk 0:00:17]} 38. Ng4 {[%clk 0:00:38]}  Bd6 {[%clk 0:00:16]} 39. Kg2 {[%clk 0:00:33]}  f5 {[%clk 0:00:16]} 40. Nh2 {[%clk 0:00:34]}  g4 {[%clk 0:00:15]} 41. Nf1 {[%clk 0:00:32]}  Kf6 {[%clk 0:00:15]} 42. Nd2 {[%clk 0:00:33]}  Ke6 {[%clk 0:00:16]} 43. Nc4 {[%clk 0:00:33]}  Bc7 {[%clk 0:00:16]} 44. Kf1 {[%clk 0:00:31]}  Kd5 {[%clk 0:00:16]} 45. Ke2 {[%clk 0:00:32]}  Kc5 {[%clk 0:00:16]} 46. Nd2 {[%clk 0:00:27]}  Kb4 {[%clk 0:00:15]} 47. Nb1 {[%clk 0:00:26]}  Kc5 {[%clk 0:00:15]} 48. c4 {[%clk 0:00:22]}  dxc3 {[%clk 0:00:15]} 49. Nxc3 {[%clk 0:00:22]}  f4 {[%clk 0:00:14]} 50. Ne4+ {[%clk 0:00:14]}  Kd4 {[%clk 0:00:13]} 51. Kd2 {[%clk 0:00:07]}  fxg3 {[%clk 0:00:12]} 52. Nxg3 {[%clk 0:00:03]}  Ke5 {[%clk 0:00:07]} 53. Ne2 {[%clk 0:00:03]}  Kf5 {[%clk 0:00:06]} 54. Ke3 {[%clk 0:00:02]}  Bb6+ {[%clk 0:00:06]} 55. d4 {[%clk 0:00:03]}  Bc7 {[%clk 0:00:06]} 56. Kd3 {[%clk 0:00:03]}  Kg5 {[%clk 0:00:05]} 57. Ke4 {[%clk 0:00:03]}  Kh4 {[%clk 0:00:04]} 58. d5 {[%clk 0:00:04]}  Kh3 {[%clk 0:00:04]} 59. Ke3 {[%clk 0:00:02]}  Kg2 {[%clk 0:00:04]} 60. Nf4+ {[%clk 0:00:02]}  Bxf4+ {[%clk 0:00:03]} 61. Kxf4 {[%clk 0:00:03]}  g3 {[%clk 0:00:03]} 62. fxg3 {[%clk 0:00:03]} 1-0


[Site "https://www.chess.com"]

[Event "Titled Tuesday Blitz January 10 Early 2023"]
[White "Ruiz Aguilar, Pablo Alexander"]
[Black "Lehtosaari, Mauri"]
[WhiteFideId "4401352"]
[BlackFideId "501999"]
[WhiteElo "2161"]
[BlackElo "2176"]
[Result "1-0"]
[Round "06"]
[TimeControl "180+2"]
[Date "2023.01.10"]
[WhiteClock "0:00:05"]
[BlackClock "0:00:06"]

1. e4 {[%clk 0:03:00]}  c5 {[%clk 0:02:58]} 2. Nf3 {[%clk 0:03:00]}  e6 {[%clk 0:02:58]} 3. d4 {[%clk 0:03:00]}  cxd4 {[%clk 0:02:57]} 4. Nxd4 {[%clk 0:03:01]}  Nc6 {[%clk 0:02:57]} 5. Nc3 {[%clk 0:03:01]}  Qc7 {[%clk 0:02:53]} 6. Ndb5 {[%clk 0:02:59]}  Qb8 {[%clk 0:02:46]} 7. Be3 {[%clk 0:02:59]}  a6 {[%clk 0:02:37]} 8. Bb6 {[%clk 0:02:59]}  axb5 {[%clk 0:02:35]} 9. Nxb5 {[%clk 0:02:58]}  Bb4+ {[%clk 0:02:36]} 10. c3 {[%clk 0:02:55]}  Ba5 {[%clk 0:02:33]} 11. Nc7+ {[%clk 0:02:47]}  Qxc7 {[%clk 0:02:33]} 12. Bxc7 {[%clk 0:02:46]}  Bxc7 {[%clk 0:02:34]} 13. Bb5 {[%clk 0:02:45]}  Nge7 {[%clk 0:02:24]} 14. a4 {[%clk 0:02:44]}  O-O {[%clk 0:02:11]} 15. b4 {[%clk 0:02:44]}  d5 {[%clk 0:02:04]} 16. f3 {[%clk 0:02:38]}  dxe4 {[%clk 0:01:58]} 17. fxe4 {[%clk 0:02:38]}  Ne5 {[%clk 0:01:56]} 18. Qe2 {[%clk 0:02:36]}  b6 {[%clk 0:01:47]} 19. O-O {[%clk 0:02:32]}  Bb7 {[%clk 0:01:43]} 20. Rad1 {[%clk 0:02:29]}  N7g6 {[%clk 0:01:10]} 21. Rd4 {[%clk 0:02:24]}  Rac8 {[%clk 0:00:56]} 22. Rfd1 {[%clk 0:02:13]}  h6 {[%clk 0:00:54]} 23. g3 {[%clk 0:02:02]}  Bb8 {[%clk 0:00:36]} 24. c4 {[%clk 0:02:01]}  Ne7 {[%clk 0:00:20]} 25. Rb1 {[%clk 0:01:19]}  N7c6 {[%clk 0:00:18]} 26. Bxc6 {[%clk 0:01:18]}  Nxc6 {[%clk 0:00:17]} 27. Rdd1 {[%clk 0:01:16]}  Ne5 {[%clk 0:00:17]} 28. Rbc1 {[%clk 0:01:11]}  Ba6 {[%clk 0:00:14]} 29. b5 {[%clk 0:01:10]}  Bb7 {[%clk 0:00:14]} 30. c5 {[%clk 0:01:09]}  bxc5 {[%clk 0:00:13]} 31. a5 {[%clk 0:01:09]}  c4 {[%clk 0:00:12]} 32. Qe3 {[%clk 0:00:53]}  Bc7 {[%clk 0:00:09]} 33. a6 {[%clk 0:00:49]}  Ba8 {[%clk 0:00:09]} 34. b6 {[%clk 0:00:49]}  Bd8 {[%clk 0:00:07]} 35. b7 {[%clk 0:00:48]}  Rb8 {[%clk 0:00:06]} 36. bxa8=Q {[%clk 0:00:28]}  Rxa8 {[%clk 0:00:07]} 37. a7 {[%clk 0:00:26]}  Bf6 {[%clk 0:00:07]} 38. Rd6 {[%clk 0:00:19]}  Rfc8 {[%clk 0:00:06]} 39. Qb6 {[%clk 0:00:14]}  Be7 {[%clk 0:00:06]} 40. Rcd1 {[%clk 0:00:09]}  Bxd6 {[%clk 0:00:06]} 41. Rxd6 {[%clk 0:00:09]}  c3 {[%clk 0:00:07]} 42. Rd1 {[%clk 0:00:07]}  Nc4 {[%clk 0:00:06]} 43. Qb7 {[%clk 0:00:06]}  Nd2 {[%clk 0:00:06]} 44. Kf2 {[%clk 0:00:05]}  c2 {[%clk 0:00:05]} 45. Rc1 {[%clk 0:00:05]}  Nc4 {[%clk 0:00:05]} 46. Rxc2 {[%clk 0:00:04]}  Nd6 {[%clk 0:00:03]} 47. Rxc8+ {[%clk 0:00:04]}  Rxc8 {[%clk 0:00:03]} 48. Qxc8+ {[%clk 0:00:04]}  Nxc8 {[%clk 0:00:03]} 49. a8=Q {[%clk 0:00:04]}  Kh7 {[%clk 0:00:02]} 50. Qxc8 {[%clk 0:00:04]}  Kg6 {[%clk 0:00:03]} 51. Qc5 {[%clk 0:00:05]}  Kf6 {[%clk 0:00:04]} 52. e5+ {[%clk 0:00:05]}  Kf5 {[%clk 0:00:04]} 53. Kf3 {[%clk 0:00:05]}  Kg6 {[%clk 0:00:05]} 54. g4 {[%clk 0:00:06]}  Kg5 {[%clk 0:00:05]} 55. h3 {[%clk 0:00:05]}  Kg6 {[%clk 0:00:06]} 56. h4 {[%clk 0:00:05]}  f5 {[%clk 0:00:06]} 57. exf6 {[%clk 0:00:05]}  Kxf6 {[%clk 0:00:06]} 58. Qh5 {[%clk 0:00:04]}  g6 {[%clk 0:00:04]} 59. Qxh6 {[%clk 0:00:04]}  Kf7 {[%clk 0:00:03]} 60. Qg5 {[%clk 0:00:04]}  Kg7 {[%clk 0:00:03]} 61. Ke4 {[%clk 0:00:05]}  e5 {[%clk 0:00:04]} 62. Kxe5 {[%clk 0:00:05]}  Kh8 {[%clk 0:00:05]} 63. Kf6 {[%clk 0:00:04]}  Kh7 {[%clk 0:00:05]} 64. Qxg6+ {[%clk 0:00:05]}  Kh8 {[%clk 0:00:06]} 65. Qg7# {[%clk 0:00:05]} 1-0


[Site "https://www.chess.com"]

[Event "Titled Tuesday Blitz January 10 Early 2023"]
[White "Mohota, Nisha"]
[Black "Novikov, Evgenij"]
[WhiteFideId "5004330"]
[BlackFideId "4125380"]
[WhiteElo "2177"]
[BlackElo "2276"]
[Result "0-1"]
[Round "06"]
[TimeControl "180+2"]
[Date "2023.01.10"]
[WhiteClock "0:00:01"]
[BlackClock "0:00:08"]

1. e4 {[%clk 0:03:00]}  c5 {[%clk 0:03:00]} 2. c3 {[%clk 0:03:00]}  d5 {[%clk 0:02:59]} 3. exd5 {[%clk 0:03:00]}  Qxd5 {[%clk 0:03:00]} 4. d4 {[%clk 0:03:00]}  Nf6 {[%clk 0:03:00]} 5. Nf3 {[%clk 0:03:00]}  Nc6 {[%clk 0:03:00]} 6. Na3 {[%clk 0:02:58]}  a6 {[%clk 0:02:56]} 7. Nc4 {[%clk 0:02:48]}  cxd4 {[%clk 0:02:50]} 8. Nb6 {[%clk 0:02:39]}  Qe4+ {[%clk 0:02:47]} 9. Be2 {[%clk 0:02:38]}  Rb8 {[%clk 0:02:42]} 10. O-O {[%clk 0:02:25]}  e5 {[%clk 0:02:34]} 11. Re1 {[%clk 0:02:15]}  Qf5 {[%clk 0:02:06]} 12. Nxd4 {[%clk 0:02:05]}  Nxd4 {[%clk 0:02:00]} 13. cxd4 {[%clk 0:02:03]}  e4 {[%clk 0:01:50]} 14. Bd3 {[%clk 0:01:27]}  Be7 {[%clk 0:01:43]} 15. Qe2 {[%clk 0:01:20]}  O-O {[%clk 0:01:14]} 16. Bxe4 {[%clk 0:01:19]}  Nxe4 {[%clk 0:01:09]} 17. Qxe4 {[%clk 0:01:19]}  Bb4 {[%clk 0:01:03]} 18. Nxc8 {[%clk 0:01:04]}  Qxe4 {[%clk 0:00:55]} 19. Rxe4 {[%clk 0:01:03]}  Rfxc8 {[%clk 0:00:54]} 20. Bf4 {[%clk 0:01:00]}  Ra8 {[%clk 0:00:54]} 21. d5 {[%clk 0:00:58]}  a5 {[%clk 0:00:48]} 22. d6 {[%clk 0:00:55]}  Rd8 {[%clk 0:00:43]} 23. Rd1 {[%clk 0:00:53]}  Rd7 {[%clk 0:00:42]} 24. Rc4 {[%clk 0:00:44]}  g5 {[%clk 0:00:26]} 25. Bg3 {[%clk 0:00:34]}  Re8 {[%clk 0:00:19]} 26. a3 {[%clk 0:00:28]}  Bxd6 {[%clk 0:00:18]} 27. h4 {[%clk 0:00:24]}  Bxg3 {[%clk 0:00:17]} 28. Rdc1 {[%clk 0:00:17]}  Be5 {[%clk 0:00:14]} 29. hxg5 {[%clk 0:00:16]}  Bxb2 {[%clk 0:00:13]} 30. Rb1 {[%clk 0:00:15]}  Bxa3 {[%clk 0:00:12]} 31. g3 {[%clk 0:00:13]}  Rde7 {[%clk 0:00:12]} 32. Kg2 {[%clk 0:00:12]}  Bb4 {[%clk 0:00:12]} 33. f4 {[%clk 0:00:09]}  b6 {[%clk 0:00:12]} 34. Kh3 {[%clk 0:00:09]}  Bc5 {[%clk 0:00:12]} 35. Kg4 {[%clk 0:00:08]}  Re4 {[%clk 0:00:10]} 36. Rc2 {[%clk 0:00:06]}  Re3 {[%clk 0:00:10]} 37. Rd2 {[%clk 0:00:04]}  Kg7 {[%clk 0:00:09]} 38. f5 {[%clk 0:00:01]}  a4 {[%clk 0:00:09]} 39. f6+ {[%clk 0:00:01]}  Kg8 {[%clk 0:00:08]} 0-1


[Site "https://www.chess.com"]

[Event "Titled Tuesday Blitz January 10 Early 2023"]
[White "Skurikhin, Dmitrij"]
[Black "Degenbaev, Aziz"]
[WhiteFideId "4161297"]
[BlackFideId "13802640"]
[WhiteElo "2297"]
[BlackElo "2203"]
[Result "0-1"]
[Round "06"]
[TimeControl "180+2"]
[Date "2023.01.10"]
[WhiteClock "0:00:22"]
[BlackClock "0:01:06"]

1. d4 {[%clk 0:03:00]}  Nf6 {[%clk 0:02:59]} 2. Nf3 {[%clk 0:02:56]}  g6 {[%clk 0:02:59]} 3. c4 {[%clk 0:02:56]}  Bg7 {[%clk 0:03:00]} 4. Nc3 {[%clk 0:02:55]}  O-O {[%clk 0:03:00]} 5. e4 {[%clk 0:02:55]}  d6 {[%clk 0:03:01]} 6. Be2 {[%clk 0:02:55]}  e5 {[%clk 0:03:02]} 7. O-O {[%clk 0:02:55]}  Nc6 {[%clk 0:03:02]} 8. d5 {[%clk 0:02:55]}  Ne7 {[%clk 0:03:02]} 9. Nd2 {[%clk 0:02:54]}  Nd7 {[%clk 0:02:52]} 10. b4 {[%clk 0:02:53]}  f5 {[%clk 0:02:50]} 11. c5 {[%clk 0:02:44]}  dxc5 {[%clk 0:02:41]} 12. bxc5 {[%clk 0:02:39]}  Nxc5 {[%clk 0:02:41]} 13. Ba3 {[%clk 0:02:38]}  Nd7 {[%clk 0:02:26]} 14. Bc4 {[%clk 0:02:31]}  Kh8 {[%clk 0:02:25]} 15. f3 {[%clk 0:02:28]}  Re8 {[%clk 0:02:17]} 16. Bb3 {[%clk 0:02:14]}  Nb6 {[%clk 0:02:12]} 17. Kh1 {[%clk 0:02:10]}  Ng8 {[%clk 0:02:05]} 18. Rc1 {[%clk 0:02:03]}  a6 {[%clk 0:02:03]} 19. exf5 {[%clk 0:02:00]}  gxf5 {[%clk 0:01:58]} 20. Re1 {[%clk 0:01:59]}  Nf6 {[%clk 0:01:52]} 21. Nc4 {[%clk 0:01:52]}  Nxc4 {[%clk 0:01:49]} 22. Bxc4 {[%clk 0:01:50]}  Nh5 {[%clk 0:01:49]} 23. d6 {[%clk 0:01:43]}  cxd6 {[%clk 0:01:48]} 24. Bf7 {[%clk 0:01:42]}  Nf6 {[%clk 0:01:41]} 25. Bxe8 {[%clk 0:01:41]}  Nxe8 {[%clk 0:01:42]} 26. Nd5 {[%clk 0:01:32]}  Be6 {[%clk 0:01:41]} 27. Qd2 {[%clk 0:01:24]}  h5 {[%clk 0:01:26]} 28. Rc2 {[%clk 0:01:12]}  Kh7 {[%clk 0:01:25]} 29. Rec1 {[%clk 0:01:11]}  Bh6 {[%clk 0:01:23]} 30. Qd3 {[%clk 0:01:00]}  Bxc1 {[%clk 0:01:22]} 31. Rxc1 {[%clk 0:01:01]}  Rc8 {[%clk 0:01:19]} 32. Rd1 {[%clk 0:00:51]}  Qa5 {[%clk 0:01:13]} 33. Bb2 {[%clk 0:00:28]}  Qxd5 {[%clk 0:01:05]} 34. Qxd5 {[%clk 0:00:27]}  Bxd5 {[%clk 0:01:06]} 35. Rxd5 {[%clk 0:00:27]}  Rc2 {[%clk 0:01:07]} 36. Ba3 {[%clk 0:00:26]}  Rxa2 {[%clk 0:01:06]} 37. Rxe5 {[%clk 0:00:23]}  dxe5 {[%clk 0:01:06]} 38. Bf8 {[%clk 0:00:22]}  Ra1# {[%clk 0:01:06]} 0-1


[Site "https://www.chess.com"]

[Event "Titled Tuesday Blitz January 10 Early 2023"]
[White "Topalov, Aleksandar"]
[Black "Lesbekova, Assel"]
[WhiteFideId "925659"]
[BlackFideId "13713248"]
[WhiteElo "2233"]
[BlackElo "1772"]
[Result "0-1"]
[Round "06"]
[TimeControl "180+2"]
[Date "2023.01.10"]
[WhiteClock "0:00:01"]
[BlackClock "0:00:05"]

1. b3 {[%clk 0:02:46]}  Nf6 {[%clk 0:02:57]} 2. Bb2 {[%clk 0:02:46]}  d6 {[%clk 0:02:57]} 3. Bxf6 {[%clk 0:02:45]}  exf6 {[%clk 0:02:57]} 4. c4 {[%clk 0:02:45]}  f5 {[%clk 0:02:55]} 5. Nc3 {[%clk 0:02:46]}  Be7 {[%clk 0:02:55]} 6. g3 {[%clk 0:02:43]}  Nc6 {[%clk 0:02:52]} 7. Bg2 {[%clk 0:02:43]}  Bf6 {[%clk 0:02:51]} 8. e3 {[%clk 0:02:43]}  Ne5 {[%clk 0:02:47]} 9. d4 {[%clk 0:02:42]}  Ng6 {[%clk 0:02:46]} 10. Nge2 {[%clk 0:02:40]}  c6 {[%clk 0:02:43]} 11. O-O {[%clk 0:02:39]}  h5 {[%clk 0:02:43]} 12. h4 {[%clk 0:02:39]}  Ne7 {[%clk 0:02:32]} 13. Qd2 {[%clk 0:02:34]}  g5 {[%clk 0:02:32]} 14. hxg5 {[%clk 0:02:33]}  Bxg5 {[%clk 0:02:32]} 15. f4 {[%clk 0:02:31]}  Bf6 {[%clk 0:02:31]} 16. Kf2 {[%clk 0:02:30]}  h4 {[%clk 0:02:28]} 17. Rh1 {[%clk 0:02:28]}  Ng6 {[%clk 0:02:23]} 18. Rag1 {[%clk 0:02:00]}  Bd7 {[%clk 0:02:20]} 19. Bf3 {[%clk 0:01:56]}  Qe7 {[%clk 0:02:01]} 20. gxh4 {[%clk 0:01:53]}  Bxh4+ {[%clk 0:01:57]} 21. Kf1 {[%clk 0:01:52]}  O-O-O {[%clk 0:01:55]} 22. b4 {[%clk 0:01:33]}  Rde8 {[%clk 0:01:53]} 23. Nd1 {[%clk 0:01:32]}  Bf6 {[%clk 0:01:39]} 24. Rxh8 {[%clk 0:01:30]}  Rxh8 {[%clk 0:01:37]} 25. Rh1 {[%clk 0:01:30]}  Nh4 {[%clk 0:01:32]} 26. Ng1 {[%clk 0:01:15]}  Qe8 {[%clk 0:01:11]} 27. Qe2 {[%clk 0:01:11]}  Qg8 {[%clk 0:01:01]} 28. Rh3 {[%clk 0:00:54]}  Kc7 {[%clk 0:00:57]} 29. Qf2 {[%clk 0:00:46]}  Ng6 {[%clk 0:00:52]} 30. Rxh8 {[%clk 0:00:41]}  Qxh8 {[%clk 0:00:53]} 31. c5 {[%clk 0:00:35]}  d5 {[%clk 0:00:50]} 32. Qg2 {[%clk 0:00:25]}  Nh4 {[%clk 0:00:45]} 33. Qh3 {[%clk 0:00:25]}  Qg7 {[%clk 0:00:39]} 34. Nf2 {[%clk 0:00:20]}  Ng6 {[%clk 0:00:35]} 35. Be2 {[%clk 0:00:16]}  Bxd4 {[%clk 0:00:20]} 36. exd4 {[%clk 0:00:15]}  Nxf4 {[%clk 0:00:20]} 37. Qf3 {[%clk 0:00:09]}  Qxd4 {[%clk 0:00:19]} 38. Ngh3 {[%clk 0:00:06]}  Qa1+ {[%clk 0:00:14]} 39. Bd1 {[%clk 0:00:06]}  Nxh3 {[%clk 0:00:07]} 40. Nxh3 {[%clk 0:00:06]}  Qxa2 {[%clk 0:00:07]} 41. Nf4 {[%clk 0:00:04]}  Qc4+ {[%clk 0:00:07]} 42. Nd3 {[%clk 0:00:03]}  a5 {[%clk 0:00:05]} 43. Qf4+ {[%clk 0:00:02]}  Qxf4+ {[%clk 0:00:05]} 44. Nxf4 {[%clk 0:00:02]}  axb4 {[%clk 0:00:05]} 45. Ke2 {[%clk 0:00:01]}  b6 {[%clk 0:00:05]} 0-1


[Site "https://www.chess.com"]

[Event "Titled Tuesday Blitz January 10 Early 2023"]
[White "Karttunen, Mika"]
[Black "De Souza, Cristiano Gomes"]
[WhiteFideId "502081"]
[BlackFideId "2151758"]
[WhiteElo "2490"]
[BlackElo "2018"]
[Result "1-0"]
[Round "06"]
[TimeControl "180+2"]
[Date "2023.01.10"]
[WhiteClock "0:00:21"]
[BlackClock "0:00:09"]

1. d4 {[%clk 0:02:56]}  Nf6 {[%clk 0:02:59]} 2. c4 {[%clk 0:02:55]}  g6 {[%clk 0:02:59]} 3. f3 {[%clk 0:02:55]}  Bg7 {[%clk 0:02:59]} 4. e4 {[%clk 0:02:55]}  d6 {[%clk 0:03:00]} 5. Be3 {[%clk 0:02:55]}  Nc6 {[%clk 0:03:00]} 6. Nc3 {[%clk 0:02:56]}  a6 {[%clk 0:03:00]} 7. d5 {[%clk 0:02:55]}  Ne5 {[%clk 0:03:00]} 8. Nge2 {[%clk 0:02:54]}  Nxc4 {[%clk 0:02:55]} 9. Bd4 {[%clk 0:02:39]}  O-O {[%clk 0:02:46]} 10. Ng3 {[%clk 0:02:34]}  Nb6 {[%clk 0:02:29]} 11. h4 {[%clk 0:02:30]}  h5 {[%clk 0:02:28]} 12. Be2 {[%clk 0:02:29]}  e5 {[%clk 0:02:25]} 13. Be3 {[%clk 0:02:28]}  Nh7 {[%clk 0:02:17]} 14. Bf2 {[%clk 0:02:24]}  f5 {[%clk 0:02:07]} 15. exf5 {[%clk 0:02:19]}  Bxf5 {[%clk 0:02:05]} 16. Nge4 {[%clk 0:02:15]}  Nd7 {[%clk 0:02:03]} 17. Rc1 {[%clk 0:02:14]}  Ndf6 {[%clk 0:02:01]} 18. Qb3 {[%clk 0:02:01]}  b5 {[%clk 0:01:42]} 19. a3 {[%clk 0:01:50]}  Qd7 {[%clk 0:01:35]} 20. Ng5 {[%clk 0:01:13]}  Nxg5 {[%clk 0:01:33]} 21. hxg5 {[%clk 0:01:13]}  Nh7 {[%clk 0:01:32]} 22. Be3 {[%clk 0:01:10]}  Qe7 {[%clk 0:01:21]} 23. g4 {[%clk 0:01:10]}  Bc8 {[%clk 0:00:57]} 24. Ne4 {[%clk 0:01:08]}  hxg4 {[%clk 0:00:53]} 25. fxg4 {[%clk 0:01:08]}  Rf4 {[%clk 0:00:47]} 26. Bxf4 {[%clk 0:00:58]}  exf4 {[%clk 0:00:47]} 27. Qh3 {[%clk 0:00:35]}  Nf8 {[%clk 0:00:25]} 28. Nf6+ {[%clk 0:00:27]}  Bxf6 {[%clk 0:00:20]} 29. gxf6 {[%clk 0:00:27]}  Qxf6 {[%clk 0:00:19]} 30. Rxc7 {[%clk 0:00:27]}  Bd7 {[%clk 0:00:15]} 31. g5 {[%clk 0:00:22]}  Bxh3 {[%clk 0:00:13]} 32. gxf6 {[%clk 0:00:22]}  Bf5 {[%clk 0:00:09]} 33. Rg7# {[%clk 0:00:21]} 1-0


[Site "https://www.chess.com"]